fUSD/lending_fUSD_20250415
["ID","MTS","AMOUNT","RATE_DAILY","PERIOD"]
[358096523,1744710639551,-297.53659475,0.00017998,2]
[358096525,1744710639560,-500.0,0.00017998,2]
[358096526,1744710639570,-500.0,0.00017998,2]
[358096528,1744710639579,-500.0,0.00017998,2]
[358096530,1744710639588,-500.0,0.00017998,2]
[358096532,1744710639598,-532.41582482,0.00017998,2]
[358096534,1744710639608,-500.0,0.00017998,2]
[358096535,1744710639617,-500.0,0.00017998,2]
[358096537,1744710639626,-510.21546811,0.00017998,2]
[358096539,1744710639635,-520.54218236,0.00017998,2]
[358096541,1744710639644,-510.6578047,0.00017998,2]
[358096543,1744710639653,-502.09640607,0.00017998,2]
[358096544,1744710639663,-500.0,0.00017998,2]
[358096546,1744710639672,-500.0,0.00017998,2]
[358096548,1744710639682,-500.0,0.00017998,2]
[358096550,1744710639691,-526.50173563,0.00017998,2]
[358096551,1744710639700,-500.0,0.00017998,2]
[358096553,1744710639709,-398.11181292,0.00017998,2]
[358096555,1744710639718,-514.27054692,0.00017998,2]
[358096557,1744710639728,-521.90790143,0.00017998,2]
[358096559,1744710639737,-503.87099721,0.00017998,2]
[358096560,1744710639747,-500.0,0.00017998,2]
[358096562,1744710639756,-504.34636269,0.00017998,2]
[358096564,1744710639765,-388.87507812,0.00017998,2]
[358096566,1744710639775,-500.0,0.00017998,2]
[358096567,1744710639784,-2315.0,0.00017998,2]
[358096569,1744710639794,-1386.0,0.00017998,2]
[358096571,1744710639803,-513.07947964,0.00017998,2]
[358096573,1744710639812,-500.0,0.00017998,2]
[358096575,1744710639821,-584.08,0.00017998,2]
[358096577,1744710639831,-500.0,0.00017998,2]
[358096579,1744710639840,-205.18,0.00017998,2]
[358096580,1744710639850,-152.83969796,0.00017998,2]
[358096582,1744710639858,-468.39364258,0.00017998,2]
[358096584,1744710639868,-500.0,0.00017998,2]
[358096586,1744710639878,-500.0,0.00017998,2]
[358096587,1744710639887,-150.16,0.00017998,2]
[358096589,1744710639897,-500.0,0.00017998,2]
[358096591,1744710639907,-500.0,0.00017998,2]
[358096593,1744710639916,-500.0,0.00017998,2]
[358096595,1744710639926,-500.0,0.00017998,2]
[358096597,1744710639935,-500.0,0.00017998,2]
[358096598,1744710639945,-161.90073423,0.00017998,2]
[358096600,1744710639955,-393.42043015,0.00017998,2]
[358096602,1744710639964,-500.0,0.00017998,2]
[358096604,1744710639974,-500.0,0.00017998,2]
[358096606,1744710639984,-500.0,0.00017998,2]
[358096608,1744710639993,-500.0,0.00017998,2]
[358096610,1744710640003,-500.0,0.00017998,2]
[358096611,1744710640012,-500.0,0.00017998,2]
[358096613,1744710640022,-500.0,0.00017998,2]
[358096615,1744710640033,-500.0,0.00017998,2]
[358096617,1744710640042,-500.0,0.00017998,2]
[358096619,1744710640051,-500.0,0.00017998,2]
[358096620,1744710640060,-500.0,0.00017998,2]
[358096622,1744710640070,-500.0,0.00017998,2]
[358096624,1744710640079,-500.0,0.00017998,2]
[358096626,1744710640088,-510.77,0.00017998,2]
[358096628,1744710640097,-500.0,0.00017998,2]
[358096629,1744710640106,-500.0,0.00017998,2]
[358096632,1744710640115,-500.0,0.00017998,2]
[358096634,1744710640124,-500.0,0.00017998,2]
[358096637,1744710640133,-500.0,0.00017998,2]
[358096638,1744710640143,-500.0,0.00017998,2]
[358096640,1744710640153,-500.0,0.00017998,2]
[358096642,1744710640163,-500.0,0.00017998,2]
[358096644,1744710640172,-500.0,0.00017998,2]
[358096646,1744710640182,-500.0,0.00017998,2]
[358096664,1744710640374,-500.0,0.00017998,2]
[358096666,1744710640384,-546.37494153,0.00017998,2]
[358096668,1744710640395,-500.0,0.00017998,2]
[358096670,1744710640404,-585.81472683,0.00017998,2]
[358096672,1744710640415,-500.0,0.00017998,2]
[358096674,1744710640425,-500.0,0.00017998,2]
[358096676,1744710640437,-1003.0686,0.00017999,2]
[358096678,1744710640448,-200.0,0.00017999,2]
[358096680,1744710640457,-1000.0,0.00017999,2]
[358096682,1744710640468,-272.94395445,0.00017999,2]
[358096684,1744710640478,-500.0,0.00017999,2]
[358096686,1744710640487,-500.0,0.00017999,2]
[358096688,1744710640497,-357.12,0.00017999,2]
[358096690,1744710640506,-500.0,0.00017999,2]
[358096691,1744710640516,-500.0,0.00017999,2]
[358096693,1744710640525,-251.31,0.00017999,2]
[358096695,1744710640535,-628.08,0.00017999,2]
[358096697,1744710640544,-420.74434952,0.00017999,2]
[358096699,1744710640553,-500.0,0.00017999,2]
[358096701,1744710640562,-500.0,0.00017999,2]
[358096703,1744710640571,-1000.8246,0.00017999,2]
[358096705,1744710640580,-500.0,0.00017999,2]
[358096706,1744710640590,-500.0,0.00017999,2]
[358096708,1744710640599,-500.0,0.00017999,2]
[358096710,1744710640609,-500.0,0.00017999,2]
[358096712,1744710640618,-500.0,0.00017999,2]
[358096714,1744710640628,-500.0,0.00017999,2]
[358096716,1744710640637,-500.0,0.00017999,2]
[358096718,1744710640646,-500.0,0.00017999,2]
[358096720,1744710640655,-500.0,0.00017999,2]
[358096722,1744710640665,-580.71,0.00017999,2]
[358096723,1744710640674,-500.0,0.00017999,2]
[358096725,1744710640684,-500.0,0.00017999,2]
[358096727,1744710640693,-500.0,0.00017999,2]
[358096729,1744710640703,-500.0,0.00017999,2]
[358096731,1744710640712,-500.0,0.00017999,2]
[358096733,1744710640721,-500.0,0.00017999,2]
[358096735,1744710640731,-500.0,0.00017999,2]
[358096737,1744710640740,-500.0,0.00017999,2]
[358096738,1744710640749,-500.0,0.00017999,2]
[358096740,1744710640758,-500.0,0.00017999,2]
[358096742,1744710640768,-500.0,0.00017999,2]
[358096744,1744710640777,-502.39,0.00017999,2]
[358096746,1744710640787,-524.85605284,0.00017999,2]
[358096748,1744710640796,-500.0,0.00017999,2]
[358096750,1744710640806,-500.0,0.00017999,2]
[358096752,1744710640816,-500.0,0.00017999,2]
[358096753,1744710640826,-500.0,0.00017999,2]
[358096755,1744710640835,-500.0,0.00017999,2]
[358096757,1744710640844,-500.0,0.00017999,2]
[358096759,1744710640853,-517.98823168,0.00017999,2]
[358096761,1744710640862,-500.0,0.00017999,2]
[358096763,1744710640872,-500.0,0.00017999,2]
[358096765,1744710640881,-500.0,0.00017999,2]
[358096767,1744710640890,-500.0,0.00017999,2]
[358096768,1744710640899,-500.0,0.00017999,2]
[358096770,1744710640909,-500.0,0.00017999,2]
[358096772,1744710640918,-500.0,0.00017999,2]
[358096774,1744710640927,-500.0,0.00017999,2]
[358096776,1744710640935,-500.0,0.00017999,2]
[358096778,1744710640944,-500.0,0.00017999,2]
[358096780,1744710640953,-500.0,0.00017999,2]
[358096782,1744710640963,-500.0,0.00017999,2]
[358096783,1744710640972,-500.0,0.00017999,2]
[358096786,1744710640981,-500.0,0.00017999,2]
[358096789,1744710640990,-500.0,0.00017999,2]
[358096792,1744710640999,-500.0,0.00017999,2]
[358096795,1744710641009,-500.0,0.00017999,2]
[358096798,1744710641018,-500.0,0.00017999,2]
[358096801,1744710641027,-643.18,0.00017999,2]
[358096804,1744710641037,-500.0,0.00017999,2]
[358096806,1744710641046,-500.0,0.00017999,2]
[358096807,1744710641055,-500.0,0.00017999,2]
[358096809,1744710641065,-500.0,0.00017999,2]
[358096811,1744710641074,-500.0,0.00017999,2]
[358096813,1744710641083,-500.0,0.00017999,2]
[358096815,1744710641092,-500.0,0.00017999,2]
[358096817,1744710641102,-500.0,0.00017999,2]
[358096819,1744710641111,-500.0,0.00017999,2]
[358096821,1744710641120,-500.0,0.00017999,2]
[358096822,1744710641129,-313.18775528,0.00017999,2]
[358096824,1744710641138,-500.0,0.00017999,2]
[358096826,1744710641147,-500.0,0.00017999,2]
[358096828,1744710641157,-511.60478336,0.00017999,2]
[358096830,1744710641167,-500.0,0.00017999,2]
[358096832,1744710641175,-500.0,0.00017999,2]
[358096834,1744710641185,-273.40777574,0.00017999,2]
[358096836,1744710641194,-500.0,0.00017999,2]
[358096838,1744710641204,-500.0,0.00017999,2]
[358096839,1744710641213,-500.0,0.00017999,2]
[358096841,1744710641223,-500.0,0.00017999,2]
[358096843,1744710641232,-500.0,0.00017999,2]
[358096845,1744710641241,-500.0,0.00017999,2]
[358096847,1744710641251,-500.0,0.00017999,2]
[358096849,1744710641260,-500.0,0.00017999,2]
[358096851,1744710641270,-500.0,0.00017999,2]
[358096853,1744710641280,-500.0,0.00017999,2]
[358096854,1744710641289,-300.61,0.00017999,2]
[358096855,1744710641299,-500.0,0.00017999,2]
[358096856,1744710641309,-531.74,0.00017999,2]
[358096857,1744710641319,-500.0,0.00017999,2]
[358096858,1744710641328,-500.0,0.00017999,2]
[358096859,1744710641338,-500.0,0.00017999,2]
[358096860,1744710641351,-500.0,0.00017999,2]
[358096861,1744710641361,-500.0,0.00017999,2]
[358096862,1744710641371,-569.72,0.00017999,2]
[358096863,1744710641380,-2019.82409034,0.00017999,2]
[358096864,1744710641391,-500.0,0.00017999,2]
[358096865,1744710641400,-500.0,0.00017999,2]
[358096866,1744710641410,-500.0,0.00017999,2]
[358096867,1744710641420,-500.0,0.00017999,2]
[358096869,1744710641434,-500.0,0.00017999,2]
[358096871,1744710641443,-500.0,0.00017999,2]
[358096872,1744710641453,-500.0,0.00017999,2]
[358096873,1744710641462,-500.0,0.00017999,2]
[358096874,1744710641472,-500.0,0.00017999,2]
[358096875,1744710641481,-500.0,0.00017999,2]
[358096876,1744710641491,-500.0,0.00017999,2]
[358096877,1744710641500,-500.0,0.00017999,2]
[358096878,1744710641510,-500.0,0.00017999,2]
[358096879,1744710641521,-188.73373206,0.00017999,2]
[358096880,1744710641531,-500.0,0.00017999,2]
[358096881,1744710641540,-500.0,0.00017999,2]
[358096882,1744710641550,-500.0,0.00017999,2]
[358096883,1744710641559,-500.0,0.00017999,2]
[358096884,1744710641569,-500.0,0.00017999,2]
[358096885,1744710641578,-500.0,0.00017999,2]
[358096886,1744710641587,-500.0,0.00017999,2]
[358096887,1744710641596,-500.0,0.00017999,2]
[358096888,1744710641606,-500.0,0.00017999,2]
[358096889,1744710641616,-500.0,0.00017999,2]
[358096890,1744710641625,-500.0,0.00017999,2]
[358096891,1744710641634,-500.0,0.00017999,2]
[358096892,1744710641643,-500.0,0.00017999,2]
[358096893,1744710641652,-500.0,0.00017999,2]
[358096894,1744710641661,-500.0,0.00017999,2]
[358096895,1744710641671,-500.0,0.00017999,2]
[358096896,1744710641680,-500.0,0.00017999,2]
[358096897,1744710641689,-500.0,0.00017999,2]
[358096898,1744710641699,-500.0,0.00017999,2]
[358096899,1744710641709,-500.0,0.00017999,2]
[358096900,1744710641719,-500.0,0.00017999,2]
[358096901,1744710641729,-519.84512954,0.00017999,2]
[358096902,1744710641739,-500.0,0.00017999,2]
[358096903,1744710641748,-500.0,0.00017999,2]
[358096904,1744710641758,-517.59,0.00017999,2]
[358096905,1744710641767,-500.0,0.00017999,2]
[358096906,1744710641777,-500.0,0.00017999,2]
[358096907,1744710641787,-500.0,0.00017999,2]
[358096908,1744710641796,-500.0,0.00017999,2]
[358096909,1744710641805,-500.0,0.00017999,2]
[358096910,1744710641815,-581.2,0.00017999,2]
[358096911,1744710641837,-500.0,0.00017999,2]
[358096912,1744710641848,-500.0,0.00017999,2]
[358096913,1744710641857,-500.0,0.00017999,2]
[358096914,1744710641866,-500.0,0.00017999,2]
[358096915,1744710641875,-500.0,0.00017999,2]
[358096916,1744710641884,-500.0,0.00017999,2]
[358096917,1744710641893,-500.0,0.00017999,2]
[358096918,1744710641902,-18.29024968,0.00017999,2]
[358096919,1744710641917,-481.70975032,0.00017999,2]
[358096920,1744710641927,-8.07423123,0.00017999,2]
[358096921,1744710641938,-491.92576877,0.00017999,2]
[358096922,1744710641948,-500.0,0.00017999,2]
[358096923,1744710641957,-500.0,0.00017999,2]
[358096924,1744710641967,-500.0,0.00017999,2]
[358096925,1744710641977,-500.0,0.00017999,2]
[358096926,1744710641986,-479.33,0.00017999,2]
[358096927,1744710641995,-468.96435686,0.00017999,2]
[358096928,1744710642004,-500.0,0.00017999,2]
[358096929,1744710642013,-500.0,0.00017999,2]
[358096930,1744710642026,-500.0,0.00017999,2]
[358096931,1744710642036,-500.0,0.00017999,2]
[358096932,1744710642046,-500.0,0.00017999,2]
[358096933,1744710642056,-500.0,0.00017999,2]
[358096934,1744710642065,-500.0,0.00017999,2]
[358096935,1744710642075,-500.0,0.00017999,2]
[358096936,1744710642084,-500.0,0.00017999,2]
[358096937,1744710642093,-500.0,0.00017999,2]
[358096938,1744710642103,-500.0,0.00017999,2]
[358096939,1744710642112,-510.77,0.00017999,2]
[358096940,1744710642120,-500.0,0.00017999,2]
[358096941,1744710642130,-510.77,0.00017999,2]
[358096942,1744710642139,-500.0,0.00017999,2]
[358096943,1744710642148,-510.77,0.00017999,2]
[358096944,1744710642158,-500.0,0.00017999,2]
[358096945,1744710642168,-510.77,0.00017999,2]
[358096946,1744710642177,-500.0,0.00017999,2]
[358096947,1744710642186,-510.77,0.00017999,2]
[358096948,1744710642196,-500.0,0.00017999,2]
[358096949,1744710642206,-510.77,0.00017999,2]
[358096950,1744710642215,-500.0,0.00017999,2]
[358096951,1744710642225,-510.77,0.00017999,2]
[358096952,1744710642236,-301.56999498,0.00017999,2]
[358096953,1744710642247,-510.77,0.00017999,2]
[358096954,1744710642257,-510.77,0.00017999,2]
[358096955,1744710642268,-510.77,0.00017999,2]
[358096956,1744710642278,-547.67041985,0.00017999,2]
[358096957,1744710642287,-464.41865131,0.00017999,2]
[358096958,1744710642613,-18.22016705,0.00017999,2]
[358096959,1744710642776,-28.13118164,0.00017999,2]
[358096960,1744710642786,-510.77,0.00017999,2]
[358096961,1744710642795,-510.77,0.00017999,2]
[358096962,1744710642805,-510.77,0.00017999,2]
[358096963,1744710642814,-510.77,0.00017999,2]
[358096964,1744710642824,-510.77,0.00017999,2]
[358096965,1744710642834,-510.77,0.00017999,2]
[358096966,1744710642843,-510.77,0.00017999,2]
[358096967,1744710642853,-500.0,0.00017999,2]
[358096968,1744710642863,-500.0,0.00017999,2]
[358096969,1744710642874,-510.77,0.00017999,2]
[358096970,1744710642884,-510.77,0.00017999,2]
[358096971,1744710642894,-510.77,0.00017999,2]
[358096972,1744710642903,-510.77,0.00017999,2]
[358096973,1744710642913,-510.99471878,0.00017999,2]
[358096974,1744710642922,-614.99835066,0.00017999,2]
[358096975,1744710642932,-500.0,0.00017999,2]
[358096976,1744710642942,-500.0,0.00017999,2]
[358096977,1744710642952,-500.0,0.00017999,2]
[358096978,1744710642961,-226.44991113,0.00017999,2]
[358096979,1744710642971,-227.25234718,0.00017999,2]
[358096980,1744710642980,-500.0,0.00017999,2]
[358096981,1744710642990,-500.0,0.00017999,2]
[358096982,1744710643000,-500.0,0.00017999,2]
[358096983,1744710643010,-500.0,0.00017999,2]
[358096984,1744710643019,-500.0,0.00017999,2]
[358096985,1744710643029,-500.0,0.00017999,2]
[358096986,1744710643039,-500.0,0.00017999,2]
[358096987,1744710643048,-500.0,0.00017999,2]
[358096988,1744710643057,-500.0,0.00017999,2]
[358096989,1744710643067,-500.0,0.00017999,2]
[358096990,1744710643077,-500.0,0.00017999,2]
[358096991,1744710643086,-500.0,0.00017999,2]
[358096992,1744710643096,-500.0,0.00017999,2]
[358097014,1744710643248,-572.68,0.00017999,2]
[358097016,1744710643258,-572.68,0.00017999,2]
[358097018,1744710643268,-572.68,0.00017999,2]
[358097020,1744710643278,-572.68,0.00017999,2]
[358097022,1744710643287,-572.68,0.00017999,2]
[358097024,1744710643296,-19.67474864,0.00017999,2]
[358097026,1744710643309,-355.19457635,0.00017999,2]
[358097035,1744710643421,-670.78701674,0.000179,2]
[358097036,1744710643434,-197.81067501,0.00017999,2]
[358097037,1744710643444,-572.68,0.00017999,2]
[358097039,1744710643454,-572.68,0.00017999,2]
[358097041,1744710643463,-572.68,0.00017999,2]
[358097042,1744710643472,-500.0,0.00017999,2]
[358097044,1744710643481,-500.0,0.00017999,2]
[358097046,1744710643491,-572.68,0.00017999,2]
[358097048,1744710643500,-576.25515499,0.00017999,2]
[358097050,1744710643509,-185.54486324,0.00017999,2]
[358097052,1744710643522,-387.13513676,0.00017999,2]
[358097053,1744710643532,-90.63825809,0.00017999,2]
[358097054,1744710643550,-482.04174191,0.00017999,2]
[358097055,1744710643560,-572.68,0.00017999,2]
[358097057,1744710643570,-572.68,0.00017999,2]
[358097058,1744710643580,-572.68,0.00017999,2]
[358097059,1744710643590,-572.68,0.00017999,2]
[358097060,1744710643600,-572.68,0.00017999,2]
[358097061,1744710643611,-3250.0,0.00017999,2]
[358097062,1744710643620,-269.90953721,0.00017999,2]
[358097063,1744710643630,-582.76,0.00018,2]
[358097064,1744710643639,-1288.0,0.00018,2]
[358097065,1744710643649,-152.0,0.00018,2]
[358097066,1744710643659,-253.129,0.00018,2]
[358097067,1744710643668,-155.0,0.00018,2]
[358097068,1744710643678,-3206.51192873,0.00018,2]
[358097069,1744710643689,-3868.2,0.00018,2]
[358097070,1744710643701,-486.92945,0.00018,2]
[358097071,1744710643717,-15105.2925003,0.00018,2]
[358097072,1744710643729,-977.36941063,0.00018,2]
[358097073,1744710643742,-802.5534407,0.00018,2]
[358097074,1744710643754,-2150.11756893,0.00018,2]
[358097075,1744710643773,-572.68,0.00017999,2]
[358097076,1744710643783,-3196.211,0.00018,2]
[358097077,1744710643848,-11949.95245444,0.00018,2]
[358097078,1744710645362,-572.68,0.00017999,2]
[358097079,1744710645372,-181.64475265,0.00017999,2]
[358097080,1744710645384,-293.75433028,0.00017999,2]
[358097081,1744710645400,-97.28091707,0.00017999,2]
[358097082,1744710645411,-572.68,0.00017999,2]
[358097083,1744710645420,-572.68,0.00017999,2]
[358097084,1744710645432,-572.68,0.00017999,2]
[358097085,1744710645443,-572.69760249,0.00017999,2]
[358097086,1744710645452,-1825.06003687,0.00018,2]
[358097087,1744710645464,-100429.56203671,0.00018,2]
[358097088,1744710645475,-1255.0,0.00018,2]
[358097089,1744710645484,-487669.29576522,0.00018,2]
[358097090,1744710645495,-1683.4663252,0.00018,2]
[358097091,1744710645507,-1685.38341313,0.00018,2]
[358097092,1744710645520,-16045.82672564,0.00018,2]
[358097094,1744710646324,-344120.95072994,0.00018,2]
[358097095,1744710646334,-374920.45559025,0.00018,2]
[358097096,1744710646347,-823.7004821,0.00018,2]
[358097101,1744710721109,350.0,0.0001958,12]
[358097102,1744710721196,350.0,0.0001781,12]
[358097103,1744710722392,535.98975646,0.00027,30]
[358097104,1744710734231,273.61,0.00017434,2]
[358097105,1744710811091,1243.48,0.00015364,2]
[358097106,1744710812132,-400.70298824,0.00017628,2]
[358097107,1744710880694,-269.1254,0.00017628,2]
[358097108,1744710917440,1000.0,0.00017299,2]
[358097109,1744710935093,1757.22,0.00013699,2]
[358097110,1744710935547,1757.22,0.00013699,2]
[358097111,1744710935848,1757.22,0.00013699,2]
[358097112,1744710936666,1757.22,0.00013699,2]
[358097113,1744710936974,1757.22,0.00013699,2]
[358097114,1744710937298,1757.22,0.00013699,2]
[358097115,1744710937689,1757.22,0.00013699,2]
[358097116,1744710938005,1757.22,0.00013699,2]
[358097117,1744710938353,1757.22,0.00013699,2]
[358097118,1744710938678,-573.65161176,0.00017628,2]
[358097119,1744710938733,157.22298824,0.00013699,2]
[358097120,1744710938757,1599.99701176,0.00013699,2]
[358097121,1744710939050,1757.22,0.00013699,2]
[358097122,1744710939560,1757.22,0.00013699,2]
[358097123,1744710939965,1757.22,0.00013699,2]
[358097124,1744710940518,1757.22,0.00013699,2]
[358097125,1744710940743,1757.22,0.00013699,2]
[358097126,1744710941139,1757.22,0.00013699,2]
[358097127,1744710941445,1757.22,0.00013699,2]
[358097128,1744710941895,1757.22,0.00013699,2]
[358097129,1744710942255,1757.22,0.00013699,2]
[358097130,1744710942616,1757.23950959,0.00013699,2]
[358097131,1744710986432,1208.1,0.00017308,2]
[358097132,1744711045893,161.28,0.00013852,2]
[358097133,1744711130566,278.11418981,0.00013783,2]
[358097134,1744711184712,1502.65,0.0001718,2]
[358097138,1744711322195,3046.58576984,0.00017,2]
[358097139,1744711330910,166.25,0.00017219,2]
[358097140,1744711626690,150.0,0.00017188,2]
[358097166,1744711832449,-400.70298824,0.00017592,2]
[358097169,1744711832461,-917.80298513,0.00017706,2]
[358097171,1744711832473,-300.0,0.00017799,2]
[358097173,1744711832484,-169.15,0.000178,2]
[358097175,1744711832495,-1037.75074196,0.000178,2]
[358097176,1744711832605,-6773.73147567,0.000178,2]
[358097186,1744711838392,-890.54535279,0.000178,2]
[358097187,1744711838542,-569.33472527,0.000178,2]
[358097188,1744711838655,-2107.43467955,0.000178,2]
[358097189,1744711838668,-2483.15858761,0.000178,2]
[358097190,1744711838710,-765.78693715,0.000178,2]
[358097191,1744711838721,-4259.6221,0.000178,2]
[358097192,1744711838730,-872.299,0.000178,2]
[358097193,1744711838741,-151.9294947,0.0001782,2]
[358097194,1744711838753,-169.15,0.00017889,2]
[358097195,1744711838764,-7151.81737763,0.00017898,2]
[358097196,1744711838774,-652.3264,0.00017898,2]
[358097197,1744711838784,-7151.81737757,0.00017898,2]
[358097198,1744711838794,-7151.81737757,0.00017898,2]
[358097199,1744711838804,-7151.81737757,0.00017899,2]
[358097200,1744711838814,-7151.81737757,0.00017899,2]
[358097201,1744711838823,-5711.7065,0.00017899,2]
[358097202,1744711838833,-7151.81737757,0.00017899,2]
[358097203,1744711838843,-7151.81737757,0.00017899,2]
[358097204,1744711838852,-7151.81737757,0.000179,2]
[358097205,1744711838862,-7151.81737757,0.000179,2]
[358097206,1744711838872,-903.44415449,0.000179,2]
[358097207,1744711838881,-727.22778263,0.000179,2]
[358097208,1744711838891,-727.22778262,0.000179,2]
[358097209,1744711838901,-213.29092674,0.000179,2]
[358097210,1744711838910,-57293.91121468,0.000179,2]
[358097211,1744711838922,-3199.94295403,0.000179,2]
[358097212,1744711838952,-6596.03655,0.000179,2]
[358097223,1744711840755,-2000.0,0.000179,2]
[358097224,1744711840767,-842.15132763,0.000179,2]
[358097225,1744711840866,-293.96248045,0.000179,2]
[358097226,1744711840881,-1717.4770984,0.000179,2]
[358097227,1744711840896,-1229.58251082,0.000179,2]
[358097228,1744711840908,-178.03244895,0.000179,2]
[358097229,1744711840976,-6973.78492862,0.000179,2]
[358097231,1744711840987,-152.0,0.00017922,2]
[358097233,1744711840998,-339.788,0.00017922,2]
[358097235,1744711841010,-621.187,0.00017973,2]
[358097236,1744711841020,-191.714,0.00017973,2]
[358097237,1744711841031,-668.65185757,0.00017989,2]
[358097238,1744711841041,-207.4,0.00017989,2]
[358097239,1744711841051,-1000.0,0.00017996,2]
[358097240,1744711841061,-500.0,0.00017997,2]
[358097241,1744711841071,-500.0,0.00017997,2]
[358097242,1744711841084,-500.0,0.00017997,2]
[358097243,1744711841094,-500.0,0.00017997,2]
[358097244,1744711841104,-500.0,0.00017997,2]
[358097245,1744711841114,-500.0,0.00017997,2]
[358097246,1744711841125,-500.0,0.00017997,2]
[358097247,1744711841135,-500.0,0.00017997,2]
[358097250,1744711841145,-500.0,0.00017997,2]
[358097252,1744711841155,-500.0,0.00017997,2]
[358097254,1744711841165,-500.0,0.00017997,2]
[358097256,1744711841175,-500.0,0.00017997,2]
[358097258,1744711841185,-500.0,0.00017997,2]
[358097261,1744711841195,-500.0,0.00017997,2]
[358097264,1744711841204,-500.0,0.00017997,2]
[358097267,1744711841213,-500.0,0.00017997,2]
[358097270,1744711841223,-500.0,0.00017997,2]
[358097272,1744711841233,-500.0,0.00017997,2]
[358097274,1744711841243,-500.0,0.00017997,2]
[358097276,1744711841252,-500.0,0.00017997,2]
[358097277,1744711841262,-500.0,0.00017997,2]
[358097280,1744711841272,-500.0,0.00017997,2]
[358097282,1744711841283,-500.0,0.00017997,2]
[358097283,1744711841293,-500.0,0.00017997,2]
[358097284,1744711841302,-500.0,0.00017997,2]
[358097285,1744711841311,-500.0,0.00017997,2]
[358097286,1744711841322,-150.0,0.00017997,2]
[358097287,1744711841334,-2788.8512306,0.00017998,2]
[358097288,1744711841344,-194.06844707,0.00017998,2]
[358097289,1744711841354,-500.0,0.00017998,2]
[358097290,1744711841364,-2019.82409034,0.00017998,2]
[358097291,1744711841374,-500.0,0.00017998,2]
[358097292,1744711841384,-500.0,0.00017998,2]
[358097293,1744711841394,-500.0,0.00017998,2]
[358097294,1744711841403,-500.0,0.00017998,2]
[358097295,1744711841414,-500.0,0.00017998,2]
[358097296,1744711841424,-500.0,0.00017998,2]
[358097297,1744711841434,-500.0,0.00017998,2]
[358097298,1744711841443,-517.59,0.00017998,2]
[358097299,1744711841454,-500.0,0.00017998,2]
[358097300,1744711841464,-500.0,0.00017998,2]
[358097301,1744711841474,-500.0,0.00017998,2]
[358097302,1744711841484,-500.0,0.00017998,2]
[358097303,1744711841495,-500.0,0.00017998,2]
[358097304,1744711841504,-500.0,0.00017998,2]
[358097305,1744711841514,-500.0,0.00017998,2]
[358097306,1744711841524,-500.0,0.00017998,2]
[358097307,1744711841533,-500.0,0.00017998,2]
[358097308,1744711841543,-500.0,0.00017998,2]
[358097309,1744711841554,-500.0,0.00017998,2]
[358097310,1744711841564,-273.40777574,0.00017998,2]
[358097311,1744711841575,-500.0,0.00017998,2]
[358097312,1744711841585,-500.0,0.00017998,2]
[358097313,1744711841594,-500.0,0.00017998,2]